[Event "*** Biggest EVER Titled Tuesday"]
[Site "Chess.com"]
[Date "2018.04.17"]
[Round "3"]
[White "BIG_Pirate"]
[Black "bugsbunny444"]
[Result "1/2-1/2"]
[WhiteElo "2281"]
[BlackElo "2418"]
[TimeControl "180+2"]
[EndTime "13:38:22 PDT"]
[Termination "Game drawn by repetition"]

1. Nf3 {[%clk 0:03:01.9]} 1... d5 {[%clk 0:01:51.6]} 2. c4 {[%clk 0:03:02.5]}
2... d4 {[%clk 0:01:51.7]} 3. e3 {[%clk 0:03:03.1]} 3... Nc6 {[%clk 0:01:52.5]}
4. d3 {[%clk 0:02:58.8]} 4... e5 {[%clk 0:01:52.8]} 5. exd4 {[%clk 0:02:55]}
5... exd4 {[%clk 0:01:51.7]} 6. a3 {[%clk 0:02:55.8]} 6... a5 {[%clk 0:01:52.2]}
7. g3 {[%clk 0:02:55.7]} 7... Nf6 {[%clk 0:01:46.1]} 8. Bg2 {[%clk 0:02:56.6]}
8... Be7 {[%clk 0:01:47]} 9. O-O {[%clk 0:02:57.6]} 9... O-O {[%clk 0:01:48.2]}
10. Bg5 {[%clk 0:02:58.4]} 10... h6 {[%clk 0:01:28]} 11. Bxf6 {[%clk 0:02:58.9]}
11... Bxf6 {[%clk 0:01:29.9]} 12. Nbd2 {[%clk 0:03:00.1]} 12... Be7 {[%clk
0:01:21.8]} 13. Re1 {[%clk 0:02:59.2]} 13... Re8 {[%clk 0:01:22.7]} 14. Ne5
{[%clk 0:02:56.1]} 14... Nxe5 {[%clk 0:01:11.7]} 15. Rxe5 {[%clk 0:02:58]} 15...
c6 {[%clk 0:01:08.5]} 16. Qa4 {[%clk 0:02:39.3]} 16... Bf8 {[%clk 0:00:40.9]}
17. Rae1 {[%clk 0:02:29.8]} 17... Rxe5 {[%clk 0:00:40.4]} 18. Rxe5 {[%clk
0:02:31.7]} 18... Be6 {[%clk 0:00:30.7]} 19. h4 {[%clk 0:02:18.6]} 19... Ra6
{[%clk 0:00:24.3]} 20. Kh2 {[%clk 0:01:52.9]} 20... Bd6 {[%clk 0:00:21.4]} 21.
Re1 {[%clk 0:01:51.1]} 21... Qxh4+ {[%clk 0:00:15.9]} 22. Kg1 {[%clk 0:01:51.1]}
22... Qd8 {[%clk 0:00:15.5]} 23. Ne4 {[%clk 0:01:51.2]} 23... Bf8 {[%clk
0:00:15.3]} 24. Bf3 {[%clk 0:01:20.3]} 24... Qd7 {[%clk 0:00:15.7]} 25. Qc2
{[%clk 0:01:09.1]} 25... c5 {[%clk 0:00:14.9]} 26. Nd2 {[%clk 0:00:57.8]} 26...
a4 {[%clk 0:00:15.1]} 27. Bd5 {[%clk 0:00:43.4]} 27... Bxd5 {[%clk 0:00:14.2]}
28. cxd5 {[%clk 0:00:45.3]} 28... b5 {[%clk 0:00:10.3]} 29. b3 {[%clk 0:00:34]}
29... Qxd5 {[%clk 0:00:10.4]} 30. bxa4 {[%clk 0:00:34.6]} 30... Rxa4 {[%clk
0:00:12.3]} 31. Re8 {[%clk 0:00:31.4]} 31... Rxa3 {[%clk 0:00:10.5]} 32. Qb1
{[%clk 0:00:30.9]} 32... Ra8 {[%clk 0:00:05.6]} 33. Qxb5 {[%clk 0:00:30.3]}
33... Rxe8 {[%clk 0:00:06.1]} 34. Qxe8 {[%clk 0:00:32.2]} 34... Qe6 {[%clk
0:00:07.3]} 35. Qxe6 {[%clk 0:00:28.8]} 35... fxe6 {[%clk 0:00:09.2]} 36. f4
{[%clk 0:00:30]} 36... Kf7 {[%clk 0:00:10.2]} 37. Kg2 {[%clk 0:00:31.1]} 37...
Ke7 {[%clk 0:00:11.1]} 38. Kf3 {[%clk 0:00:32.5]} 38... Kd6 {[%clk 0:00:12.3]}
39. Ke4 {[%clk 0:00:33.7]} 39... g6 {[%clk 0:00:11.8]} 40. Nc4+ {[%clk
0:00:35.1]} 40... Ke7 {[%clk 0:00:11.6]} 41. Ne5 {[%clk 0:00:36.5]} 41... g5
{[%clk 0:00:09]} 42. g4 {[%clk 0:00:33.7]} 42... gxf4 {[%clk 0:00:09.5]} 43.
Kxf4 {[%clk 0:00:34]} 43... Bg7 {[%clk 0:00:10.3]} 44. Nc4 {[%clk 0:00:33.3]}
44... Kd7 {[%clk 0:00:05.5]} 45. Ke4 {[%clk 0:00:32.9]} 45... Bf6 {[%clk
0:00:06.2]} 46. Nb6+ {[%clk 0:00:31.7]} 46... Kc6 {[%clk 0:00:06.5]} 47. Nc4
{[%clk 0:00:33.6]} 47... Kd7 {[%clk 0:00:07.4]} 48. Nb6+ {[%clk 0:00:34.6]}
48... Kc6 {[%clk 0:00:07.3]} 49. Nc4 {[%clk 0:00:36.5]} 49... Kc7 {[%clk
0:00:07.5]} 50. Nd2 {[%clk 0:00:36.9]} 50... Kd6 {[%clk 0:00:07.7]} 51. Nc4+
{[%clk 0:00:37.8]} 51... Ke7 {[%clk 0:00:08.7]} 52. Nb6 {[%clk 0:00:36.2]} 52...
Kf7 {[%clk 0:00:06.5]} 53. Nd7 {[%clk 0:00:37.1]} 53... Be7 {[%clk 0:00:07.5]}
54. Kf4 {[%clk 0:00:26.2]} 54... Bd6+ {[%clk 0:00:05.4]} 55. Kf3 {[%clk
0:00:27.4]} 55... Kg6 {[%clk 0:00:06.1]} 56. Nb6 {[%clk 0:00:27.4]} 56... Kg5
{[%clk 0:00:05.7]} 57. Nc4 {[%clk 0:00:25.8]} 57... Bc7 {[%clk 0:00:07]} 58. Nd2
{[%clk 0:00:26.7]} 58... Kg6 {[%clk 0:00:04.3]} 59. Nc4 {[%clk 0:00:27]} 59...
h5 {[%clk 0:00:04.2]} 60. gxh5+ {[%clk 0:00:27.5]} 60... Kxh5 {[%clk 0:00:06.1]}
61. Ke4 {[%clk 0:00:29.1]} 61... Kg6 {[%clk 0:00:07.3]} 62. Na3 {[%clk
0:00:29.1]} 62... Kf6 {[%clk 0:00:08]} 63. Nb5 {[%clk 0:00:30]} 63... Bb8 {[%clk
0:00:08.8]} 64. Na3 {[%clk 0:00:31.9]} 64... Bc7 {[%clk 0:00:08.9]} 65. Nc4
{[%clk 0:00:33.8]} 65... Ke7 {[%clk 0:00:08.8]} 66. Nd2 {[%clk 0:00:35.7]} 66...
Kd7 {[%clk 0:00:10]} 67. Nc4 {[%clk 0:00:37.5]} 67... Kc6 {[%clk 0:00:11.3]} 68.
Nd2 {[%clk 0:00:37.7]} 68... Kb5 {[%clk 0:00:12.6]} 69. Nc4 {[%clk 0:00:39.1]}
69... Kb4 {[%clk 0:00:13.8]} 70. Nd2 {[%clk 0:00:40]} 70... Kc3 {[%clk
0:00:13.5]} 71. Nc4 {[%clk 0:00:41.1]} 71... Kc2 {[%clk 0:00:12.2]} 72. Na3+
{[%clk 0:00:42]} 72... Kd2 {[%clk 0:00:13]} 73. Nc4+ {[%clk 0:00:43.9]} 73...
Kc3 {[%clk 0:00:14.3]} 74. Na3 {[%clk 0:00:44.9]} 74... Kd2 {[%clk 0:00:13.8]}
75. Nc4+ {[%clk 0:00:46.3]} 75... Ke2 {[%clk 0:00:15]} 76. Na3 {[%clk
0:00:48.2]} 76... Ba5 {[%clk 0:00:09]} 77. Nc4 {[%clk 0:00:48.9]} 77... Bb4
{[%clk 0:00:10.1]} 78. Ne5 {[%clk 0:00:49.9]} 78... Bc3 {[%clk 0:00:07.4]} 79.
Nc4 {[%clk 0:00:50.7]} 79... Bb4 {[%clk 0:00:05.4]} 80. Nd6 {[%clk 0:00:51.8]}
80... Bc3 {[%clk 0:00:05.1]} 81. Nc4 {[%clk 0:00:53.7]} 81... Bb4 {[%clk
0:00:06.4]} 82. Ne5 {[%clk 0:00:55.4]} 82... Bc3 {[%clk 0:00:07.2]} 83. Nc4
{[%clk 0:00:57.3]} 83... Bb4 {[%clk 0:00:08.4]} 84. Ne5 {[%clk 0:00:59.2]}
1/2-1/2

[Event "*** Biggest EVER Titled Tuesday"]
[Site "Chess.com"]
[Date "2018.04.17"]
[Round "3"]
[White "mukhin1"]
[Black "dretch"]
[Result "0-1"]
[WhiteElo "2902"]
[BlackElo "2673"]
[TimeControl "180+2"]
[EndTime "13:38:48 PDT"]
[Termination "dretch won by checkmate"]

1. d4 {[%clk 0:03:01.4]} 1... d5 {[%clk 0:03:00.2]} 2. c4 {[%clk 0:03:01.5]}
2... c6 {[%clk 0:03:01.2]} 3. cxd5 {[%clk 0:03:02.4]} 3... cxd5 {[%clk
0:03:02.5]} 4. Bg5 {[%clk 0:03:03.9]} 4... Nc6 {[%clk 0:02:53.6]} 5. Nc3 {[%clk
0:03:03.7]} 5... Nf6 {[%clk 0:02:46.8]} 6. Bxf6 {[%clk 0:03:04.1]} 6... gxf6
{[%clk 0:02:45.8]} 7. e3 {[%clk 0:03:05.5]} 7... e6 {[%clk 0:02:43.8]} 8. Bd3
{[%clk 0:03:05.7]} 8... Bd7 {[%clk 0:02:32.5]} 9. Rc1 {[%clk 0:03:04.4]} 9...
Qb6 {[%clk 0:02:26]} 10. Qd2 {[%clk 0:02:59.8]} 10... Rc8 {[%clk 0:02:22.2]} 11.
Nge2 {[%clk 0:02:56.8]} 11... Bd6 {[%clk 0:02:18.5]} 12. O-O {[%clk 0:02:57.5]}
12... f5 {[%clk 0:02:18.1]} 13. a3 {[%clk 0:02:46]} 13... Rg8 {[%clk 0:01:56.7]}
14. b4 {[%clk 0:02:41.5]} 14... Ne7 {[%clk 0:01:56.1]} 15. f4 {[%clk 0:02:36]}
15... Kf8 {[%clk 0:01:52.9]} 16. Kh1 {[%clk 0:02:37.2]} 16... a5 {[%clk
0:01:40.1]} 17. Rb1 {[%clk 0:02:07.8]} 17... axb4 {[%clk 0:01:39]} 18. axb4
{[%clk 0:02:09.7]} 18... Kg7 {[%clk 0:01:29.8]} 19. Nd1 {[%clk 0:01:15.4]} 19...
Kh8 {[%clk 0:01:27.1]} 20. Nf2 {[%clk 0:01:14.9]} 20... Rg7 {[%clk 0:00:57.6]}
21. Ng3 {[%clk 0:01:13.4]} 21... Rg6 {[%clk 0:00:50.5]} 22. Be2 {[%clk
0:01:10.6]} 22... Ng8 {[%clk 0:00:48.7]} 23. Bh5 {[%clk 0:01:11]} 23... Rg7
{[%clk 0:00:49.1]} 24. Nd3 {[%clk 0:01:10.3]} 24... Nf6 {[%clk 0:00:46.7]} 25.
Ne5 {[%clk 0:01:10.7]} 25... Be8 {[%clk 0:00:43.8]} 26. Bf3 {[%clk 0:01:04.1]}
26... Qd8 {[%clk 0:00:31.5]} 27. b5 {[%clk 0:01:00.3]} 27... Rg8 {[%clk
0:00:24.4]} 28. Qf2 {[%clk 0:00:56.9]} 28... Qe7 {[%clk 0:00:18.9]} 29. Qe2
{[%clk 0:00:46.1]} 29... Ne4 {[%clk 0:00:18.7]} 30. Bxe4 {[%clk 0:00:23.3]}
30... fxe4 {[%clk 0:00:18.4]} 31. f5 {[%clk 0:00:13.4]} 31... f6 {[%clk
0:00:18]} 32. Ng4 {[%clk 0:00:14.5]} 32... Bxg3 {[%clk 0:00:18.4]} 33. hxg3
{[%clk 0:00:16.4]} 33... Bh5 {[%clk 0:00:19.6]} 34. Rf4 {[%clk 0:00:11]} 34...
exf5 {[%clk 0:00:20.8]} 35. Qa2 {[%clk 0:00:12]} 35... Bxg4 {[%clk 0:00:21.4]}
36. Qxd5 {[%clk 0:00:13.8]} 36... Rgd8 {[%clk 0:00:20.6]} 37. Qa2 {[%clk
0:00:14.2]} 37... Qd7 {[%clk 0:00:20.9]} 38. Rbf1 {[%clk 0:00:15.4]} 38... Qd5
{[%clk 0:00:21.9]} 39. Qf2 {[%clk 0:00:17.2]} 39... Rg8 {[%clk 0:00:22.5]} 40.
Kg1 {[%clk 0:00:17.1]} 40... Qxb5 {[%clk 0:00:23.2]} 41. Qd2 {[%clk 0:00:17.2]}
41... Qd5 {[%clk 0:00:24.3]} 42. Qb4 {[%clk 0:00:18.4]} 42... b5 {[%clk
0:00:25.4]} 43. Qe7 {[%clk 0:00:19.7]} 43... Rcf8 {[%clk 0:00:25.1]} 44. Rc1
{[%clk 0:00:19.3]} 44... Rf7 {[%clk 0:00:26]} 45. Qb4 {[%clk 0:00:19.3]} 45...
Rb8 {[%clk 0:00:26.7]} 46. Rc5 {[%clk 0:00:20.2]} 46... Qd8 {[%clk 0:00:24.9]}
47. Rc6 {[%clk 0:00:20.6]} 47... Rc8 {[%clk 0:00:23.8]} 48. Rd6 {[%clk
0:00:21.3]} 48... Qf8 {[%clk 0:00:24.3]} 49. Qa3 {[%clk 0:00:15.9]} 49... Ra8
{[%clk 0:00:23.7]} 50. Qc5 {[%clk 0:00:16.3]} 50... Rc8 {[%clk 0:00:24.4]} 51.
Qb6 {[%clk 0:00:17]} 51... Rb8 {[%clk 0:00:25]} 52. Qc6 {[%clk 0:00:18]} 52...
b4 {[%clk 0:00:25.6]} 53. Rf2 {[%clk 0:00:18.4]} 53... b3 {[%clk 0:00:26]} 54.
Rb2 {[%clk 0:00:20]} 54... Bd1 {[%clk 0:00:20.4]} 55. Qd5 {[%clk 0:00:18.1]}
55... Bc2 {[%clk 0:00:21]} 56. Rc6 {[%clk 0:00:19.4]} 56... Rd8 {[%clk
0:00:14.2]} 57. Qxf5 {[%clk 0:00:19.9]} 57... Qg7 {[%clk 0:00:15.3]} 58. Qf4
{[%clk 0:00:20.6]} 58... Rg8 {[%clk 0:00:15.8]} 59. Kf2 {[%clk 0:00:21.1]} 59...
Qg5 {[%clk 0:00:16.9]} 60. Qd6 {[%clk 0:00:20.5]} 60... Qf5+ {[%clk 0:00:16.8]}
61. Ke1 {[%clk 0:00:19]} 61... Qh5 {[%clk 0:00:15.6]} 62. Kf2 {[%clk 0:00:18.8]}
62... Qd1 {[%clk 0:00:14.8]} 63. Qb4 {[%clk 0:00:20.1]} 63... Qg4 {[%clk
0:00:14.4]} 64. Rc5 {[%clk 0:00:19.4]} 64... Qxg3+ {[%clk 0:00:15]} 65. Kf1
{[%clk 0:00:20.7]} 65... Qxg2+ {[%clk 0:00:15.9]} 66. Ke1 {[%clk 0:00:22.6]}
66... Qg1+ {[%clk 0:00:17]} 67. Kd2 {[%clk 0:00:24.3]} 67... Rg2+ {[%clk
0:00:17.9]} 68. Kc3 {[%clk 0:00:25.9]} 68... Qe1+ {[%clk 0:00:18.7]} 69. Kc4
{[%clk 0:00:26.6]} 69... Bd3+ {[%clk 0:00:19.6]} 70. Kd5 {[%clk 0:00:27.8]}
70... Qxb4 {[%clk 0:00:20.3]} 71. Rc8+ {[%clk 0:00:29.3]} 71... Rf8 {[%clk
0:00:21.5]} 72. Rxf8+ {[%clk 0:00:29.6]} 72... Qxf8 {[%clk 0:00:22.6]} 73. Rxg2
{[%clk 0:00:31.5]} 73... Qc8 {[%clk 0:00:23.1]} 74. Kd6 {[%clk 0:00:32.5]} 74...
Bc2 {[%clk 0:00:23.5]} 75. Ke7 {[%clk 0:00:33.3]} 75... b2 {[%clk 0:00:24.5]}
76. Kf7 {[%clk 0:00:33.8]} 76... b1=Q {[%clk 0:00:24.8]} 77. Kxf6 {[%clk
0:00:13.9]} 77... Qb6+ {[%clk 0:00:24.5]} 78. Ke5 {[%clk 0:00:13.1]} 78... Qce6+
{[%clk 0:00:24.1]} 79. Kf4 {[%clk 0:00:10.4]} 79... Qbd6+ {[%clk 0:00:24.7]} 80.
Kg5 {[%clk 0:00:11.4]} 80... Qh6+ {[%clk 0:00:25.2]} 81. Kg4 {[%clk 0:00:12.3]}
81... Qdg6# {[%clk 0:00:25.9]} 0-1

[Event "*** Biggest EVER Titled Tuesday"]
[Site "Chess.com"]
[Date "2018.04.17"]
[Round "3"]
[White "BillieKimbah"]
[Black "Arystanner23"]
[Result "1-0"]
[WhiteElo "2769"]
[BlackElo "2496"]
[TimeControl "180+2"]
[EndTime "13:39:53 PDT"]
[Termination "BillieKimbah won by resignation"]

1. d4 {[%clk 0:03:01.9]} 1... Nf6 {[%clk 0:02:59.2]} 2. c4 {[%clk 0:03:03]} 2...
g6 {[%clk 0:03:00.1]} 3. g3 {[%clk 0:03:03.8]} 3... Bg7 {[%clk 0:03:00.9]} 4.
Bg2 {[%clk 0:03:05.2]} 4... O-O {[%clk 0:03:02.5]} 5. Nc3 {[%clk 0:03:06.2]}
5... d6 {[%clk 0:03:03.7]} 6. Nf3 {[%clk 0:03:06.8]} 6... Nc6 {[%clk 0:03:05]}
7. O-O {[%clk 0:03:07.2]} 7... a6 {[%clk 0:03:06.2]} 8. d5 {[%clk 0:03:01.2]}
8... Na5 {[%clk 0:03:06.2]} 9. b3 {[%clk 0:03:02.3]} 9... c5 {[%clk 0:03:05.8]}
10. dxc6 {[%clk 0:03:02.1]} 10... Nxc6 {[%clk 0:03:06.4]} 11. Bb2 {[%clk
0:03:00.8]} 11... Bd7 {[%clk 0:03:05.7]} 12. Qd2 {[%clk 0:03:00.9]} 12... Rb8
{[%clk 0:03:04.9]} 13. Nd5 {[%clk 0:02:56.8]} 13... Ne4 {[%clk 0:02:56.1]} 14.
Qc2 {[%clk 0:02:52.1]} 14... Bxb2 {[%clk 0:02:48.8]} 15. Qxb2 {[%clk 0:02:53]}
15... b5 {[%clk 0:02:44.1]} 16. Rac1 {[%clk 0:02:53]} 16... e6 {[%clk 0:02:34]}
17. Ne3 {[%clk 0:02:44.7]} 17... Qf6 {[%clk 0:02:21.9]} 18. Qxf6 {[%clk
0:02:43.2]} 18... Nxf6 {[%clk 0:02:22.6]} 19. Rfd1 {[%clk 0:02:44.9]} 19... bxc4
{[%clk 0:02:07.9]} 20. bxc4 {[%clk 0:02:36.5]} 20... Ne8 {[%clk 0:01:57.9]} 21.
Ng5 {[%clk 0:02:32.6]} 21... Rb2 {[%clk 0:01:49.6]} 22. Rc2 {[%clk 0:02:30]}
22... Rxc2 {[%clk 0:01:48.9]} 23. Nxc2 {[%clk 0:02:31.9]} 23... Ne5 {[%clk
0:01:49.9]} 24. Ne3 {[%clk 0:02:29.7]} 24... f5 {[%clk 0:01:46.4]} 25. Rb1
{[%clk 0:01:56]} 25... f4 {[%clk 0:01:39.1]} 26. gxf4 {[%clk 0:01:47.9]} 26...
Rxf4 {[%clk 0:01:39.9]} 27. Rb7 {[%clk 0:01:36.5]} 27... h6 {[%clk 0:01:27.8]}
28. Nh3 {[%clk 0:01:12.4]} 28... Rf7 {[%clk 0:01:25.8]} 29. Rb6 {[%clk
0:01:11.8]} 29... g5 {[%clk 0:01:22.3]} 30. Kf1 {[%clk 0:00:59.8]} 30... a5
{[%clk 0:01:21.4]} 31. Ke1 {[%clk 0:00:57.6]} 31... g4 {[%clk 0:01:21.9]} 32.
Ng1 {[%clk 0:00:57.6]} 32... h5 {[%clk 0:01:22.9]} 33. Ra6 {[%clk 0:00:55.1]}
33... a4 {[%clk 0:01:23.3]} 34. h3 {[%clk 0:00:49.6]} 34... Kg7 {[%clk 0:01:19]}
35. hxg4 {[%clk 0:00:50.3]} 35... hxg4 {[%clk 0:01:19.9]} 36. f3 {[%clk
0:00:51.7]} 36... gxf3 {[%clk 0:01:18.7]} 37. Nxf3 {[%clk 0:00:52.5]} 37...
Nxf3+ {[%clk 0:01:18.1]} 38. Bxf3 {[%clk 0:00:54.4]} 38... Kf6 {[%clk
0:01:13.3]} 39. Kd2 {[%clk 0:00:55.5]} 39... Ke5 {[%clk 0:01:10.7]} 40. Kc3
{[%clk 0:00:52.3]} 40... Nf6 {[%clk 0:01:08.4]} 41. Ra5+ {[%clk 0:00:53]} 41...
Kf4 {[%clk 0:01:09.3]} 42. Ng2+ {[%clk 0:00:49.3]} 42... Kg3 {[%clk 0:01:10.6]}
43. Rg5+ {[%clk 0:00:40.9]} 43... Kf2 {[%clk 0:01:11.5]} 44. Nf4 {[%clk
0:00:41.2]} 44... Ne4+ {[%clk 0:01:02.5]} 45. Bxe4 {[%clk 0:00:42.2]} 45... Rxf4
{[%clk 0:01:04]} 46. Bd3 {[%clk 0:00:43.8]} 46... e5 {[%clk 0:01:00.8]} 47. e4
{[%clk 0:00:24.7]} 47... Bc6 {[%clk 0:00:38.4]} 48. Rg6 {[%clk 0:00:21.5]} 48...
Bxe4 {[%clk 0:00:38.8]} 49. Bxe4 {[%clk 0:00:22.3]} 49... Rxe4 {[%clk
0:00:40.1]} 50. Rxd6 {[%clk 0:00:23.9]} 50... Re2 {[%clk 0:00:39.5]} 51. c5
{[%clk 0:00:24.3]} 51... Rxa2 {[%clk 0:00:21.6]} 52. c6 {[%clk 0:00:25.5]} 52...
Ra3+ {[%clk 0:00:23.1]} 53. Kc2 {[%clk 0:00:24.4]} 53... Ra2+ {[%clk 0:00:21.4]}
54. Kb1 {[%clk 0:00:25.2]} 54... Ra3 {[%clk 0:00:21.4]} 55. Rd2+ {[%clk
0:00:18.1]} 55... Ke3 {[%clk 0:00:22.2]} 56. c7 {[%clk 0:00:19.5]} 56... Kxd2
{[%clk 0:00:21.2]} 57. c8=Q {[%clk 0:00:19.6]} 57... Rb3+ {[%clk 0:00:21.4]} 58.
Ka2 {[%clk 0:00:21]} 58... e4 {[%clk 0:00:21.8]} 59. Qd7+ {[%clk 0:00:19.5]}
59... Rd3 {[%clk 0:00:21.8]} 60. Qxa4 {[%clk 0:00:18.6]} 60... e3 {[%clk
0:00:23.3]} 61. Qf4 {[%clk 0:00:20]} 61... Ke1 {[%clk 0:00:21.5]} 62. Kb2 {[%clk
0:00:20]} 62... e2 {[%clk 0:00:22.9]} 63. Kc2 {[%clk 0:00:21.2]} 63... Rd1
{[%clk 0:00:21]} 64. Qe3 {[%clk 0:00:17.6]} 64... Kf1 {[%clk 0:00:22.1]} 65.
Qf3+ {[%clk 0:00:18.6]} 65... Ke1 {[%clk 0:00:23.4]} 66. Qg3+ {[%clk 0:00:18.3]}
66... Kf1 {[%clk 0:00:24.7]} 67. Qf4+ {[%clk 0:00:19.6]} 67... Ke1 {[%clk
0:00:26]} 68. Qg3+ {[%clk 0:00:15.4]} 68... Kf1 {[%clk 0:00:27.2]} 69. Qf3+
{[%clk 0:00:16.8]} 69... Ke1 {[%clk 0:00:27.8]} 70. Qg2 {[%clk 0:00:18.3]} 70...
Rd2+ {[%clk 0:00:28]} 71. Kc3 {[%clk 0:00:19.7]} 71... Kd1 {[%clk 0:00:24]} 72.
Qg4 {[%clk 0:00:16.6]} 72... Kc1 {[%clk 0:00:13.1]} 73. Qa4 {[%clk 0:00:15.2]}
73... Rb2 {[%clk 0:00:08.6]} 74. Qa1+ {[%clk 0:00:13.4]} 74... Rb1 {[%clk
0:00:10]} 75. Qa3+ {[%clk 0:00:14.6]} 75... Kd1 {[%clk 0:00:11.6]} 76. Qd6+
{[%clk 0:00:15.4]} 76... Ke1 {[%clk 0:00:13.1]} 77. Qg3+ {[%clk 0:00:14]} 77...
Kf1 {[%clk 0:00:12.4]} 78. Qf3+ {[%clk 0:00:15]} 78... Ke1 {[%clk 0:00:13.6]}
79. Qh1+ {[%clk 0:00:10.4]} 79... Kf2 {[%clk 0:00:14.5]} 80. Qh2+ {[%clk
0:00:11.8]} 80... Kf3 {[%clk 0:00:15]} 81. Qh3+ {[%clk 0:00:12.7]} 81... Kf2
{[%clk 0:00:16.1]} 82. Qh4+ {[%clk 0:00:13.8]} 82... Kf3 {[%clk 0:00:16.6]} 83.
Qf6+ {[%clk 0:00:13.2]} 83... Kg2 {[%clk 0:00:18]} 84. Qg6+ {[%clk 0:00:14.1]}
84... Kf2 {[%clk 0:00:19.6]} 85. Qf5+ {[%clk 0:00:14.6]} 1-0